[Event "Slovakian ECo-C Extraliga 2024-25"]
[Site "Slovakia"]
[Date "2025.02.15"]
[Round "5.1"]
[White "Mihok, Oliver"]
[Black "Delgerdalai, Bayarjavkhlan"]
[Result "1/2-1/2"]
[Annotator "TA"]
[ECO "C78"]
[WhiteElo "2526"]
[BlackElo "2331"]
[PlyCount "90"]
[EventDate "2024.09.12"]
[EventType "team-tourn"]
[EventCountry "SVK"]
[SourceTitle "playchess.com"]
[Source "ChessBase"]
[SourceQuality "1"]
[TimeControl "5400+30"]

{[%evp 17,90,41,52,21,9,11,30,8,29,25,56,52,56,68,65,0,0,0,86,92,1029,-59,-70,-1617,411,-16,-18,-66,-56,-69,-56,-124,8,8,8,8,8,0,0,0,0,0,0,0,0,0,0,0,0,0,0,0,0,0,0,0,0,0,0,0,0,0,0,0,0,0,5700,0,0,0,0,0,0,0,0]} 1. e4 {[%emt 0:00:15]} e5 {[%emt 0:00:09]} 2. Nf3 {[%emt 0:00:05]} Nc6 {[%emt 0:00:05]} 3. Bb5 {[%emt 0:00:09]} a6 {[%emt 0:00:06]} 4. Ba4 {[%emt 0:00:05]} Nf6 {[%emt 0:00:06]} 5. O-O {[%emt 0:00:22]} b5 {[%emt 0:00:07]} 6. Bb3 {[%emt 0:00:12]} Bc5 {[%emt 0:00:06]} 7. a4 {[%emt 0:01:04]} Rb8 {[%emt 0:00:28]} 8. c3 {[%emt 0:02:04]} d6 {[%emt 0:00:16]} 9. d4 {[%emt 0:00:08]} Bb6 $1 {[%emt 0:00:09]} 10. a5 {[%emt 0:03:59] C78: Ruy Lopez: Archangelsk and Möller Defences.} Ba7 {[%emt 0:01:24]} 11. h3 {[%emt 0:01:13]} O-O {[%emt 0:03:56]} 12. Be3 {[%emt 0:01:47] White has an edge.} exd4 {[%emt 0:04:44]} 13. cxd4 {[%emt 0:00:16]} d5 {[%emt 0:10:51]} 14. e5 {[%emt 0:06:06] White plays in the center} Ne4 {[%emt 0:00:15]} 15. Nc3 $36 {[%emt 0:05:12][%mdl 2048] White has the initiative.} Be6 {[%emt 0:05:22]} 16. Nxe4 $146 {[%emt 0:14:11]} (16. Re1 $14) (16. Ne2 Ne7 17. Nd2 Rc8 18. Nxe4 dxe4 19. d5 Bxe3 20. dxe6 Bc5 21. exf7+ Kh8 22. Nf4 {1-0 Bernadskiy,V (2609)-Prado Lobo,J (2306) Titled Tuesday intern op 17th Jan Late blitz 2023 (3)}) 16... dxe4 $11 {[%emt 0:00:32]} 17. d5 {[%emt 0:00:03] Bxa7 is the strong threat.} (17. Bxe6 exf3 18. Bg4 (18. Qxf3 $2 Nxd4 19. Bxd4 fxe6 $19) 18... fxg2 (18... Bxd4 19. Rc1 $11) 19. Kxg2 Nxd4 $19 (19... Bxd4 20. Rc1 $11)) 17... exf3 {[%emt 0:20:41]} (17... Bxe3 $11 18. dxe6 (18. dxc6 $2 exf3 19. Bxe6 fxg2 $19) 18... fxe6) 18. dxe6 $16 {[%emt 0:00:07]} (18. dxc6 $2 Bxe3 19. Qxd8 Rfxd8 $19 (19... Rbxd8 $2 20. Bxe6 fxg2 21. Kxg2 $19)) 18... Bb6 $2 {[%mdl 8192] [#]} 19. Bc5 $2 Bxc5 $15 {[%emt 0:08:58]} 20. Qd6 {[%mdl 8192]} Be3 $4 {[%mdl 8192]} (20... cxd6 $19 21. exf7+ Rxf7 (21... Kh8 $2 22. g3 $19)) 21. Qxd8 {[%emt 0:15:52]} (21. exf7+ Kh8 22. Qxc6 fxg2 $18) (21. Qxc6 $18 fxg2 22. exf7+ (22. fxe3 $2 gxf1=Q+ 23. Rxf1 Qg5+ 24. Kh2 Qxe5+ 25. Kh1 fxe6 $19) 22... Kh8 23. Rfe1 (23. fxe3 gxf1=Q+ 24. Rxf1 Qg5+ 25. Kh1 Qxe5 $19) (23. Qxg2 Bc5 $18) (23. Kxg2 Qg5+ 24. Kh1 Qh4 $18) 23... Bxf2+ 24. Kxf2 Qd4+ 25. Kxg2 Qxb2+ 26. Qc2 Qxc2+ 27. Bxc2 Rxf7 28. e6) 21... Rfxd8 $11 {[%emt 0:15:42]} 22. exf7+ {[%emt 0:01:36]} (22. fxe3 $11 {was preferable.} Nxe5 23. exf7+ Kf8 24. Rac1) 22... Kf8 $15 {[%emt 0:00:05]} 23. fxe3 {[%emt 0:00:05]} Nxe5 {[%emt 0:01:42]} 24. Rad1 {[%emt 0:04:10]} (24. Rac1 $15) 24... Nc4 {[%emt 0:11:29]} (24... Nxf7 25. Rc1 (25. Rxd8+ Nxd8 26. Rxf3+ Ke7 $11) 25... Ne5 26. Rc5 $15) (24... fxg2 $17 25. Kxg2 (25. Rxd8+ Rxd8 26. Kxg2 c5 $19) 25... c5 (25... Rxd1 26. Rxd1 Nc4 27. Rd7 $11)) 25. Rxd8+ $11 {[%emt 0:04:26]} (25. Rxf3 $2 Nd2 (25... Nxa5 26. Rxd8+ Rxd8 27. Ba2 $17) 26. Rxd2 Rxd2 $19) 25... Rxd8 {[%emt 0:00:06]} 26. Bxc4 {[%emt 0:00:15]} (26. Rxf3 $2 Nd2 (26... Nxa5 27. Be6 $17) 27. Be6 Nxf3+ 28. gxf3 Ke7 $19 (28... Rd1+ $2 29. Kf2 $19)) 26... bxc4 {[%emt 0:02:32]} 27. Rxf3 {[%emt 0:02:06][%mdl 4096] Endgame KR-KR. White is a pawn up.} Rd5 {[%emt 0:05:43]} 28. Rf4 {[%emt 0:00:51]} Rxa5 {[%emt 0:00:47]} 29. Rxc4 {[%emt 0:00:10]} c5 {[%emt 0:01:27]} 30. Rf4 {[%emt 0:03:09]} Rb5 {[%emt 0:00:47]} 31. Rf2 {[%emt 0:00:56]} Rb3 {[%emt 0:01:52]} 32. e4 {[%emt 0:01:30]} Re3 {[%emt 0:00:43]} 33. Rf4 {[%emt 0:02:11]} Re2 {[%emt 0:02:35]} 34. b3 {[%emt 0:01:30]} Rb2 {[%emt 0:00:40]} 35. e5 {[%emt 0:03:19]} Re2 {[%emt 0:00:41]} 36. Rf5 {[%emt 0:02:24]} g6 {[%emt 0:00:18]} 37. Rf6 {[%emt 0:02:01]} Rxe5 {[%emt 0:00:07]} 38. Rxa6 {[%emt 0:00:11]} (38. h4 {is interesting.} Re3 39. Rxa6 Rxb3 40. Kf2) 38... Kxf7 {[%emt 0:01:03]} 39. Ra7+ {[%emt 0:00:06]} Re7 {[%emt 0:00:39]} 40. Ra5 {[%emt 0:00:05]} Rb7 {[%emt 0:00:07]} 41. Rxc5 {[%emt 0:00:06]} (41. Kh2 $5) 41... Rb5 $2 {[%mdl 8192] [#]} 42. b4 $2 Rxb4 {[%emt 0:00:34] The position is equal.} 43. Rc6 Rb3 44. Rc7+ {[%emt 0:01:03]} Kg8 {[%emt 0:00:40]} 45. Kf2 {[%emt 0:00:13]} Rd3 {[%emt 0:00:09] Weighted Error Value: White=0.63/Black=0.59  Loses game:     	---       	Black=2      Missed win:     	White=3     	Black=1      Mistake:       	White=3     	Black=2      Inaccurate:     	---       	Black=1      OK:         	White=20    	Black=13     Best:        	White=2     	Black=3} 1/2-1/2

[Event "Slovakian ECo-C Extraliga 2024-25"]
[Site "Slovakia"]
[Date "2025.02.15"]
[Round "5.1"]
[White "Antoniewski, Rafal"]
[Black "Sahidi, Samir"]
[Result "1/2-1/2"]
[Annotator "TA"]
[ECO "B95"]
[WhiteElo "2444"]
[BlackElo "2494"]
[PlyCount "156"]
[EventDate "2024.09.12"]
[EventType "team-tourn"]
[EventCountry "SVK"]
[SourceTitle "playchess.com"]
[Source "ChessBase"]
[SourceQuality "1"]
[TimeControl "5400+30"]

{[%evp 12,156,24,0,34,38,45,34,35,29,59,55,62,56,74,32,104,107,104,109,107,109,116,68,45,83,62,39,82,0,15,0,89,-24,-62,-66,-82,-120,-120,-265,-261,-256,-99,-194,-194,-201,-185,-206,-141,-147,-106,-100,-87,-94,-100,-95,-107,-131,-58,-80,-38,-41,-41,-38,-43,-41,-39,-41,-41,-39,-27,-33,-31,-38,-27,-27,-27,-33,-11,-22,-12,-24,-12,-18,-12,-18,-12,-58,-58,-58,-58,-58,-58,-58,-51,-54,-58,-58,-58,-58,-58,-58,-50,-58,-58,-58,-58,-58,-58,-67,-67,-67,-51,-58,-44,-60,-59,-67,-67,-67,-67,-67,-67,-67,-67,-69,-69,-69,-69,-69,-69,-69,-69,-69,-69,-69,-69,-69,-69,-69,-69,-69,-69,-69,0,-71,0]} 1. e4 {[%emt 0:00:08]} c5 {[%emt 0:00:22]} 2. Nf3 {[%emt 0:00:23]} d6 {[%emt 0:00:08]} 3. d4 {[%emt 0:01:12]} cxd4 {[%emt 0:00:06]} 4. Nxd4 {[%emt 0:00:06]} Nf6 {[%emt 0:00:07]} 5. Nc3 {[%emt 0:00:06]} a6 {[%emt 0:00:04]} 6. Bg5 {[%emt 0:01:47]} e6 {[%emt 0:01:56]} 7. Qe2 {[%emt 0:00:43]} Nbd7 {[%emt 0:01:38] B95: Sicilian Najdorf: 6 Bg5 e6, unusual White 7th moves.} 8. O-O-O {[%emt 0:01:03]} Qc7 {[%emt 0:07:33]} 9. g4 {[%emt 0:08:44]} b5 {[%emt 0:04:08] White is slightly better.} 10. a3 {[%emt 0:00:26]} Bb7 {[%emt 0:03:53]} 11. Kb1 {[%emt 0:02:26]} Rc8 $146 {[%emt 0:07:58]} (11... Be7 12. h4 O-O 13. Rh3 Rfe8 14. Bc1 d5 15. exd5 exd5 16. g5 Bf8 17. Re3 Rxe3 18. Qxe3 {1-0 Cvak,R (2361)-Khlopov,S (2196) SA-2018-0-00660}) 12. Bxf6 {[%emt 0:02:47]} gxf6 {[%emt 0:01:03]} 13. h4 {[%emt 0:00:08]} Ne5 {[%emt 0:08:20]} (13... h5 $14) 14. f4 $16 {[%emt 0:03:45]} Nc4 {[%emt 0:01:15][%cal Oc4a3]} 15. Rh3 {[%emt 0:00:40]} Qb6 {[%cal Oh7h5]} 16. Qe1 {[%emt 0:09:48]} h5 {[%emt 0:08:27]} 17. g5 {[%emt 0:01:37]} (17. gxh5 $16 Bh6 18. f5) 17... fxg5 $1 $14 {[%emt 0:00:13]} 18. hxg5 {[%emt 0:00:59]} Bg7 19. Rhd3 {[%cal Og5g6] g6! is the strong threat.} Qc5 {[%emt 0:10:10] [#]} 20. e5 {[%emt 0:40:18]} dxe5 $11 {[%emt 0:01:29]} 21. Nb3 {[%emt 0:00:51]} Qc6 {[%emt 0:05:23] [#]} (21... Qe7 $11 {remains equal.}) 22. fxe5 {[%emt 0:02:33]} (22. f5 $1 $16 {[%cal Rf5f6]}) 22... Nxe5 {[%emt 0:03:56]} (22... Bxe5 $2 23. Na5 Nxa3+ (23... Nxa5 $2 24. Qxe5 O-O 25. g6 $18) 24. bxa3 (24. Ka2 Qc7 $18) 24... Qxc3 (24... Bxc3 $2 25. Nxc6 Bxc6 26. Rxc3 $18) 25. Rxc3 (25. Nxb7 $2 Qxc2#) 25... Bxc3 26. Qe3 Bxa5 27. g6 $18) 23. Re3 {[%emt 0:03:55]} Qc7 {[%emt 0:02:51]} 24. Nd4 {[%emt 0:02:35][%cal Of1b5]} O-O {[%emt 0:02:55]} 25. Qh4 {[%emt 0:02:11] [#]} (25. Bh3 $17) 25... Rfd8 $1 $19 {[%emt 0:02:31]} (25... Ng4 26. Red3 $17) 26. Qxh5 {[%emt 0:06:14]} Ng6 $2 {[%emt 0:03:20] Prevents Bd3.} (26... Nf3 $19 {is more deadly.} 27. Bd3 Rxd4 (27... Nxd4 $2 28. Qh7+ Kf8 29. Rf1 $19) 28. Rxf3 Bxf3 29. Qxf3 b4) 27. Nxe6 {[%emt 0:06:09]} Rxd1+ {[%emt 0:00:33]} 28. Qxd1 {[%emt 0:00:03]} fxe6 {[%emt 0:01:01]} 29. Rxe6 {[%emt 0:00:03]} Rd8 {[%emt 0:06:37]} 30. Qe1 {[%emt 0:01:42]} Ne5 {[%emt 0:00:37]} 31. Bh3 {[%emt 0:01:41]} Qc5 {[%emt 0:03:40] Strongly threatening ...Bc8.} 32. Ne4 {[%emt 0:00:45]} Qd4 {[%emt 0:03:30]} 33. Nf6+ {[%emt 0:00:24]} Bxf6 {[%emt 0:00:09]} 34. Rxf6 {[%emt 0:00:05]} Be4 {[%emt 0:02:11]} ({Black should play} 34... Kg7 $17 35. Qc1 Be4) 35. Bf5 $15 {[%emt 0:00:50]} Qd1+ {[%emt 0:02:52]} (35... Nf3 {feels hotter.} 36. Rg6+ Kf8 37. Qb4+ Qxb4 38. Rf6+ Ke8) 36. Qxd1 {[%emt 0:00:03]} Rxd1+ {[%emt 0:00:07]} 37. Ka2 {[%emt 0:00:03]} Bxf5 {[%emt 0:00:16]} 38. Rxf5 {[%emt 0:00:04][%mdl 4096] Endgame KRN-KR} Nd7 {[%emt 0:00:43]} 39. a4 {[%emt 0:00:38]} bxa4 {[%emt 0:00:49]} 40. Ra5 {[%emt 0:00:31][%csl LRa4,LRa6]} Rd6 {[%emt 0:00:27]} 41. Rxa4 {[%emt 0:00:14]} Kf7 {[%emt 0:00:15]} 42. Ra5 {[%emt 0:01:15]} Nb8 {[%emt 0:04:20]} 43. Rf5+ {[%emt 0:00:00]} Ke7 {[%emt 0:00:00]} 44. b4 {[%emt 0:00:00]} Rb6 {[%emt 0:00:00]} 45. c3 {[%emt 0:00:00]} Nd7 {[%emt 0:00:00]} 46. Kb3 {[%emt 0:00:00]} Rg6 {[%emt 0:00:00]} 47. Ra5 {[%emt 0:00:00]} Kd8 {[%emt 0:00:00]} 48. Kc2 {[%emt 0:00:00]} Kc7 {[%emt 0:00:00]} 49. b5 {[%emt 0:00:00]} (49. c4 $11 {is more appropriate.}) 49... axb5 {[%emt 0:00:00]} (49... Rxg5 50. b6+ (50. Rxa6 Rxb5 51. Rh6 Rf5 $17) 50... Kxb6 51. Rxg5 $18) 50. Rxb5 {[%emt 0:00:00]} Nf8 {[%emt 0:00:00]} 51. Rc5+ {[%emt 0:00:00]} Kd7 {[%emt 0:00:00]} 52. Rd5+ {[%emt 0:00:00]} Ke7 {[%emt 0:00:00]} 53. Ra5 {[%emt 0:00:00]} Ne6 {[%emt 0:00:00]} 54. Kb3 {[%emt 0:00:00]} Nxg5 {[%emt 0:00:00]} 55. Kb4 {[%emt 0:00:00]} Ne6 {[%emt 0:00:00]} 56. Ra7+ {[%emt 0:00:00]} Kf6 {[%emt 0:00:00]} 57. Rd7 {[%emt 0:00:00]} Rg8 {[%emt 0:00:00]} 58. c4 {[%emt 0:00:00]} Rb8+ {[%emt 0:00:00]} 59. Kc3 {[%emt 0:00:00]} Nc5 {[%emt 0:00:00]} 60. Rd6+ {[%emt 0:00:00]} Ke7 {[%emt 0:00:00]} 61. Rd5 {[%emt 0:00:00]} Nd7 {[%emt 0:00:00]} 62. Rd1 {[%emt 0:00:00]} Nf6 {[%emt 0:00:00]} 63. Re1+ {[%emt 0:00:00]} Kd6 {[%emt 0:00:00]} 64. Kd4 {[%emt 0:00:00]} Rh8 {[%emt 0:00:00]} 65. Ra1 {[%emt 0:00:00]} Rh4+ {[%emt 0:00:00]} 66. Kd3 {[%emt 0:00:00]} Nd7 {[%emt 0:00:00]} 67. Kc3 {[%emt 0:00:00]} Rh3+ {[%emt 0:00:00]} 68. Kd2 {[%emt 0:00:00]} Ne5 {[%emt 0:00:00]} 69. Ke2 {[%emt 0:00:30]} Kc5 {[%emt 0:00:00]} ({Resist} 69... Nxc4 70. Rb1 $17) 70. Rd1 {[%emt 0:00:45]} Kxc4 {[%emt 0:00:00]} 71. Rd6 {[%emt 0:00:39]} Kc3 {[%emt 0:00:00]} 72. Rd8 {[%emt 0:00:23]} Nd3 {[%emt 0:00:00]} 73. Rc8+ {[%emt 0:00:55]} Kd4 {[%emt 0:00:00]} 74. Rd8+ {[%emt 0:00:09]} Ke4 {[%emt 0:00:00]} 75. Re8+ {[%emt 0:00:05]} Ne5 {[%emt 0:00:00]} 76. Kd2 {[%emt 0:00:05]} Kd4 {[%emt 0:00:00]} 77. Rd8+ {[%emt 0:00:07]} Ke4 {[%emt 0:00:00]} 78. Re8 {[%emt 0:00:04]} Kd4 {[%emt 0:00:00] Black had all chances to win.   Weighted Error Value: White=0.19 (very precise) /Black=0.19 (very precise)   Mistake:       	White=6     	Black=5      Inaccurate:     	White=2     	Black=4      OK:         	White=25    	Black=29     Best:        	White=3     	Black=4      Strong:       	---       	Black=2} (78... Kd5 $17) 1/2-1/2

[Event "Slovakian ECo-C Extraliga 2024-25"]
[Site "Slovakia"]
[Date "2025.02.15"]
[Round "5.1"]
[White "Druska, Juraj"]
[Black "Korobov, Anton"]
[Result "1/2-1/2"]
[Annotator "TA"]
[ECO "B90"]
[WhiteElo "2442"]
[BlackElo "2627"]
[PlyCount "139"]
[EventDate "2024.09.12"]
[EventType "team-tourn"]
[EventCountry "SVK"]
[SourceTitle "playchess.com"]
[Source "ChessBase"]
[SourceQuality "1"]
[TimeControl "5400+30"]

{[%evp 23,139,6,25,23,31,6,16,21,18,25,46,30,64,58,68,66,88,72,67,59,76,18,19,20,18,0,0,0,0,20,61,66,70,47,49,16,38,16,16,20,19,13,50,12,15,12,52,52,67,17,26,0,0,0,0,0,28,0,0,0,0,0,27,0,0,0,0,-7,-7,-7,-7,-7,-7,-7,-7,-8,-7,-7,-7,-8,-8,-8,-8,-8,-8,-8,0,-8,-8,-8,0,-15,-8,-8,-8,-8,-8,-8,-8,-8,-10,-46,-46,-46,-9,-9,-9,-9,-9,-9,0,-9,-9,-9,-9,-9,-9,-16]} 1. e4 {[%emt 0:00:11]} c5 {[%emt 0:00:10]} 2. Nf3 {[%emt 0:00:15]} d6 {[%emt 0:00:10]} 3. d4 {[%emt 0:00:21]} cxd4 {[%emt 0:00:05]} 4. Nxd4 {[%emt 0:00:06]} Nf6 {[%emt 0:00:07]} 5. Nc3 {[%emt 0:00:05]} a6 {[%emt 0:00:06]} 6. Be3 {[%emt 0:00:37]} Ng4 {[%emt 0:00:28]} 7. Bc1 {[%emt 0:00:22]} Nf6 {[%emt 0:00:24]} 8. Be3 {[%emt 0:03:58]} e5 {[%emt 0:00:23]} 9. Nf3 {[%emt 0:00:12]} Qc7 {[%emt 0:00:24]} 10. Be2 {[%emt 0:00:17]} Be7 {[%emt 0:00:28]} 11. O-O {[%emt 0:00:22]} O-O {[%emt 0:00:09]} 12. a4 {[%emt 0:00:08]} b6 {[%emt 0:00:59]} 13. Qd3 {[%emt 0:00:24] B90: Sicilian Najdorf: Unusual White 6th moves, 6 Be3 Ng4 and 6 Be3 e5.} Nbd7 {[%emt 0:00:32]} 14. Qc4 {[%emt 0:00:12]} Qxc4 {[%emt 0:00:36]} 15. Bxc4 {[%emt 0:00:10]} Bb7 {[%emt 0:00:03]} 16. Nd2 {[%emt 0:00:30]} Rfc8 {[%emt 0:06:47][%cal Of6e4]} 17. f3 {[%emt 0:02:36]} Rc7 {[%emt 0:09:58]} 18. Rfd1 {[%emt 0:00:57] White is more active.} Rac8 {[%emt 0:00:19]} 19. b3 {[%emt 0:01:57]} Kf8 $146 {[%emt 0:02:35]} (19... h5 20. Bf2 Kf8 21. Nf1 g6 22. Ne3 Ke8 23. Kf1 Bf8 24. Rd2 Be7 25. Rad1 Ra8 26. Ncd5 Nxd5 27. Bxd5 b5 {1-0 Short,N (2695)-Gelfand,B (2665) Novgorod 3rd 1996 (7)}) 20. Bf2 {[%emt 0:02:48]} Nh5 {[%emt 0:20:31]} 21. g3 {[%emt 0:46:44]} g6 {[%emt 0:01:53]} 22. Nf1 {[%emt 0:07:23]} (22. Rab1 $16) 22... f5 $11 {[%emt 0:01:18]} 23. Ne3 {[%emt 0:01:09]} (23. exf5 {feels hotter.} Bxf3 24. Rd3 e4 25. Rd2) 23... Nhf6 {[%emt 0:00:28]} 24. Ncd5 {[%emt 0:05:19]} Nxd5 {[%emt 0:00:43]} 25. Nxd5 {[%emt 0:00:09]} Rxc4 {[%emt 0:00:48]} 26. bxc4 {[%emt 0:00:10]} Rxc4 {[%emt 0:00:05]} 27. exf5 {[%emt 0:02:23]} (27. Nxb6 Nxb6 28. Rdb1 (28. Bxb6 fxe4 29. f4 exf4 $15) 28... Bxe4 $11) 27... gxf5 {[%emt 0:09:43]} 28. Ne3 {[%emt 0:05:36]} (28. Bxb6 $2 Bxd5 (28... Rxc2 29. Bf2 $16) 29. Rxd5 Nxb6 $19) 28... Rc7 {[%emt 0:02:14]} 29. Kg2 {[%emt 0:05:01][%cal Oc2c4]} f4 {[%emt 0:04:20]} 30. gxf4 {[%emt 0:01:10]} exf4 {[%emt 0:00:09]} 31. Nf5 {[%emt 0:07:16]} Ne5 {[%emt 0:02:05]} 32. Nd4 {[%emt 0:01:31] [#]} Rc3 {[%emt 0:06:42][%cal Re5f3]} 33. Be1 {[%emt 0:00:00]} Rc4 {[%emt 0:00:44]} 34. Rab1 {[%emt 0:00:54]} Rxa4 {[%emt 0:00:44]} 35. Rxb6 {[%emt 0:00:42]} Bd5 {[%emt 0:00:07]} 36. Rbb1 {[%emt 0:02:02]} (36. Rb4 $14 Ra3 37. Bd2) 36... Bf6 {[%emt 0:07:27]} 37. c3 {[%emt 0:00:22]} Ra2+ $1 {[%emt 0:07:32]} 38. Rd2 {[%emt 0:00:10]} Ra3 {[%emt 0:00:20]} 39. Rdd1 {[%emt 0:01:08]} Nc4 {[%emt 0:04:25] [#] ...Ne3+ would now be deadly.} 40. Ra1 {[%emt 0:03:32]} (40. Kg1 $5) 40... Bxd4 $1 {[%emt 0:01:01] This pair of bishops is nice.} 41. Rxa3 {[%emt 0:00:00]} Ne3+ {[%emt 0:00:00]} 42. Kh1 {[%emt 0:00:00]} (42. Kg1 Bc5 (42... Nxd1+ $2 43. cxd4 Ne3 44. Rxa6 $18) 43. Rd3 (43. Rda1 $2 Nc4+ 44. Kg2 Bxa3 $19) 43... Bc4 (43... Bxa3 44. c4 $16) 44. Rxe3 fxe3 $15) 42... Bxf3+ {[%emt 0:00:00]} 43. Kg1 {[%emt 0:00:00]} Bc5 {[%emt 0:00:00]} 44. Rd4 {[%emt 0:00:00]} Nc2 {[%emt 0:00:00]} (44... Bxa3 $2 45. Rxf4+ Ke8 46. Rxf3 $18) 45. Ra5 {[%emt 0:00:00][%cal Oa5c5] aiming for Rxc5!.} Nxd4 {[%emt 0:00:00]} (45... Nxe1 $2 {too greedy.} 46. Rxc5 dxc5 47. Rxf4+ Ke7 48. Kf1 $18) ({But not} 45... Bxd4+ $6 46. cxd4 Nxe1 47. Kf2 $16 (47. Rxa6 $2 Nd3 $19)) 46. cxd4 {[%emt 0:00:00]} Bxd4+ {[%emt 0:00:00][%mdl 4096] Endgame KRB-KB} 47. Bf2 $132 {[%emt 0:00:00][%mdl 2048] White puts up resistance} Be5 {[%emt 0:00:00]} 48. Rxa6 {[%emt 0:00:00]} Kf7 {[%emt 0:00:00]} 49. Ra3 {[%emt 0:00:00]} Be4 {[%emt 0:00:00]} 50. Ra4 {[%emt 0:00:00]} Bg6 {[%emt 0:00:00]} 51. Bb6 {[%emt 0:00:00]} Ke6 {[%emt 0:00:00]} 52. Kf2 {[%emt 0:00:00]} Bc2 {[%emt 0:00:00]} 53. Ra2 {[%emt 0:00:00]} Be4 {[%emt 0:00:00]} 54. Ra4 {[%emt 0:00:12]} Kf5 {[%emt 0:00:00]} 55. Bc7 {[%emt 0:03:16]} h5 {[%emt 0:00:00]} 56. Rb4 {[%emt 0:02:10]} Bh1 {[%emt 0:00:00]} 57. Rb5 {[%emt 0:01:51]} Ke6 {[%emt 0:00:00]} 58. Rb4 {[%emt 0:00:18] Dodges Bd4+} Bd5 {[%emt 0:00:00]} 59. Bb6 {[%emt 0:01:00]} Bc6 {[%emt 0:00:00]} 60. Bc7 {[%emt 0:00:47]} Kf5 {[%emt 0:00:00]} 61. Kf1 {[%emt 0:00:50]} Bd5 {[%emt 0:00:00]} 62. Rb6 {[%emt 0:01:09]} Bc4+ {[%emt 0:00:00]} 63. Kg2 {[%emt 0:00:01]} Ke6 {[%emt 0:00:00]} 64. Rb4 {[%emt 0:00:08] The position is equal.} Kd5 {[%emt 0:00:00]} 65. Bb6 {[%emt 0:00:38]} Bc3 {[%emt 0:00:00]} 66. Ra4 {[%emt 0:00:25]} Be5 {[%emt 0:00:00]} 67. Kf3 {[%emt 0:00:44]} Bb3 {[%emt 0:00:34]} 68. Rxf4 {[%emt 0:00:32]} Bd1+ {[%emt 0:00:07]} 69. Ke3 {[%emt 0:00:05]} Bxf4+ {[%emt 0:00:18]} 70. Kxf4 {[%emt 0:00:05] Weighted Error Value: White=0.11 (very precise) /Black=0.06 (flawless)   Mistake:       	White=2     	---        Inaccurate:     	White=6     	Black=6      OK:         	White=19    	Black=23     Best:        	White=5     	Black=5      Strong:       	---       	Black=2} 1/2-1/2

[Event "Slovakian ECo-C Extraliga 2024-25"]
[Site "Slovakia"]
[Date "2025.02.15"]
[Round "5.1"]
[White "Babula, Vlastimil"]
[Black "Neugebauer, Martin"]
[Result "1/2-1/2"]
[Annotator "TA"]
[ECO "A04"]
[WhiteElo "2322"]
[BlackElo "2509"]
[PlyCount "72"]
[EventDate "2024.09.12"]
[EventType "team-tourn"]
[EventCountry "SVK"]
[SourceTitle "playchess.com"]
[Source "ChessBase"]
[SourceQuality "1"]
[TimeControl "5400+30"]

{[%evp 9,72,-11,-7,-14,-22,-11,-12,-19,-1,-13,-11,-13,-25,-4,0,-8,-16,-17,-24,-10,-9,-35,0,-67,-82,-106,-69,-85,-89,-47,-59,-81,-76,-68,-91,-81,-93,-85,-94,-86,-87,-88,-97,-92,-85,-83,-78,-86,-29,-33,-43,-51,-27,-149,0,0,0,0,0,0,0,0,0,0,0]} 1. Nf3 {[%emt 0:00:07]} c5 {[%emt 0:03:34]} 2. g3 {[%emt 0:01:17]} Nc6 {[%emt 0:02:53]} 3. Bg2 {[%emt 0:06:06]} g6 {[%emt 0:00:56]} 4. c3 {[%emt 0:03:25]} e5 {[%emt 0:04:44]} 5. d4 {[%emt 0:04:13]} cxd4 {[%emt 0:01:41]} 6. cxd4 {[%emt 0:00:23] A04: Unusual lines after 1 Nf3 and King's Indian Attack.} e4 {[%emt 0:00:23]} 7. Ne5 {[%emt 0:01:56]} d5 {[%emt 0:02:30]} 8. Nc3 {[%emt 0:06:16]} Bg7 {[%emt 0:02:18]} 9. O-O {[%emt 0:15:34]} Nge7 {[%emt 0:04:36]} 10. Nxc6 {[%emt 0:08:22]} (10. Bg5 {feels hotter.} Be6 11. Nxc6 bxc6 12. Na4) 10... bxc6 {[%emt 0:10:50]} 11. Na4 {[%emt 0:01:03]} h5 {[%emt 0:07:30][%cal Bh7h5,Bh5h4][%mdl 32]} 12. Bg5 {[%emt 0:05:24] [#]} h4 $1 {[%emt 0:03:44]} 13. Rc1 {[%emt 0:01:35]} (13. Bxh4 $2 f6 (13... Rxh4 14. gxh4 Nf5 15. Rc1 $11) 14. Qe1 g5 15. Bxg5 fxg5 $19) 13... f6 {[%emt 0:03:13]} 14. Bd2 {[%emt 0:01:07]} (14. Bxh4 $2 g5 15. f4 gxh4 $19) 14... Rb8 {[%emt 0:06:12]} 15. b3 $146 {[%emt 0:02:36]} (15. Bf4 Rb4 16. b3 g5 17. Bd2 Rxd4 18. Qe1 hxg3 19. fxg3 Rxd2 20. Qxd2 Rh7 21. Qb4 {0-1 Wuttke,J (2040)-Loeffler,W (2111) GER-ch 2014-C-V9 serv}) 15... g5 {[%emt 0:11:07]} 16. f3 {[%emt 0:09:43]} ({Better is} 16. Qc2 $11) 16... hxg3 $1 $15 {[%emt 0:03:46]} 17. hxg3 {[%emt 0:01:50]} Qd6 {[%emt 0:04:19]} 18. Qe1 {[%emt 0:11:23]} Nf5 {[%emt 0:02:02][%csl LRd4,LRg3][%cal Be7f5,Bf5g3,Bg3e2][%mdl 32]} 19. fxe4 {[%emt 0:01:38]} dxe4 {[%emt 0:00:39]} (19... Nxg3 $2 20. e5 Nxe2+ 21. Qxe2 $18) (19... Nxd4 $6 20. e3 Ne6 21. exd5 cxd5 22. Nc3 $16) 20. e3 {[%emt 0:03:27]} Nxg3 {[%emt 0:07:32]} (20... Qxg3 $6 21. Qxg3 Nxg3 22. Rf2 $15) 21. Rxc6 {[%emt 0:00:33]} Ne2+ $1 {[%emt 0:00:15]} (21... Qxc6 $6 22. Qxg3 Qa8 23. Nc5 $14) 22. Qxe2 {[%emt 0:00:21]} Qxc6 {[%emt 0:00:23]} 23. Nc5 {[%emt 0:00:18] Inhibits Ba6.} f5 {[%emt 0:01:24]} 24. Qc4 {[%emt 0:02:54][%cal Og2e4]} Qc7 {[%emt 0:11:02]} 25. Rf2 {[%emt 0:00:36][%cal Oc5e4]} Bf8 {[%emt 0:04:42]} (25... Qh2+ 26. Kf1 Qc7 27. Qa4+ Kd8 28. Ba5 $11) 26. Qa4+ {[%emt 0:06:45]} Kd8 {[%emt 0:00:31]} 27. Ba5 {[%emt 0:00:27] [#]} Rb6 $1 {[%emt 0:00:03][%cal Of8c5]} 28. Qc4 {[%emt 0:00:37] [#]} Ke8 $1 {[%emt 0:00:42]} 29. Bxb6 $11 {[%emt 0:02:03]} axb6 {[%emt 0:00:26]} 30. Qb5+ {[%emt 0:00:13]} Kd8 {[%emt 0:00:35]} 31. Na4 {[%emt 0:00:29] [#]} (31. Na6 $1 $11 Qh2+ 32. Kf1) 31... Qc1+ {[%emt 0:00:49]} ({Black should play} 31... Rh6 $1 $17 {Strongly threatening ...Qc1+.} 32. Qc4 Qh2+ 33. Kf1 Qd6) 32. Bf1 {[%emt 0:00:21] The position is equal.} Bd6 {[%emt 0:00:36]} (32... Qxe3 $2 {too greedy.} 33. Qxb6+ Ke7 34. Qc7+ Bd7 35. Qe5+ Kf7 36. Qxh8 $18) 33. Qxb6+ {[%emt 0:01:47]} Ke7 {[%emt 0:00:00]} 34. Qa7+ {[%emt 0:00:26]} Kf6 {[%emt 0:00:34]} 35. Qb6 {[%emt 0:00:35] Really sharp!} Ke7 {[%emt 0:00:11]} 36. Qa7+ {[%emt 0:00:02]} Kf6 {[%emt 0:00:29] Weighted Error Value: White=0.12 (very precise) /Black=0.11 (very precise)   Mistake:       	White=2     	Black=2      Inaccurate:     	---       	Black=2      OK:         	White=15    	Black=17     Best:        	White=8     	Black=2      Strong:       	---       	Black=2      Brilliant:      	---       	Black=1} 1/2-1/2